[Event "Late-Titled-Tuesday-Blitz-May-28-2024"]
[Site "Chess.com"]
[Date "2024.05.28"]
[Round "2"]
[White "Cuchulin"]
[Black "Pitomina"]
[Result "1/2-1/2"]
[WhiteElo "2219"]
[BlackElo "2485"]
[TimeControl "180+1"]
[EndTime "14:15:35 PDT"]
[Termination "Game drawn by repetition"]

1. d4 {[%clk 0:03:00.9]} 1... d5 {[%clk 0:02:58.6]} 2. Bf4 {[%clk 0:03:01.5]}
2... Bf5 {[%clk 0:02:58.6]} 3. e3 {[%clk 0:03:01.9]} 3... Nf6 {[%clk 0:02:58.2]}
4. Bd3 {[%clk 0:03:02.4]} 4... e6 {[%clk 0:02:58.3]} 5. Bxf5 {[%clk 0:03:02]}
5... exf5 {[%clk 0:02:59.2]} 6. Nf3 {[%clk 0:03:02]} 6... Bd6 {[%clk 0:02:59.5]}
7. Ne5 {[%clk 0:03:00.9]} 7... O-O {[%clk 0:02:58.9]} 8. O-O {[%clk 0:03:00.2]}
8... Nbd7 {[%clk 0:02:59.5]} 9. Bg3 {[%clk 0:02:54.4]} 9... Re8 {[%clk 0:02:59]}
10. f4 {[%clk 0:02:54.3]} 10... Ne4 {[%clk 0:02:58.2]} 11. Nd2 {[%clk
0:02:49.8]} 11... Ndf6 {[%clk 0:02:57.5]} 12. Bh4 {[%clk 0:02:48]} 12... c6
{[%clk 0:02:56.8]} 13. Bxf6 {[%clk 0:02:42.5]} 13... Nxf6 {[%clk 0:02:57.7]} 14.
c4 {[%clk 0:02:38.8]} 14... Bb4 {[%clk 0:02:56.6]} 15. Ndf3 {[%clk 0:02:35.3]}
15... dxc4 {[%clk 0:02:56.9]} 16. Nxc4 {[%clk 0:02:33.9]} 16... Nd5 {[%clk
0:02:53.2]} 17. a3 {[%clk 0:02:28.7]} 17... Bf8 {[%clk 0:02:51.6]} 18. Re1
{[%clk 0:02:27.9]} 18... f6 {[%clk 0:02:48.4]} 19. Qd3 {[%clk 0:02:25.4]} 19...
g6 {[%clk 0:02:49]} 20. g3 {[%clk 0:02:17.1]} 20... Qd7 {[%clk 0:02:47.7]} 21.
e4 {[%clk 0:02:15.5]} 21... fxe4 {[%clk 0:02:47.4]} 22. Rxe4 {[%clk 0:02:14.8]}
22... Rxe4 {[%clk 0:02:47.9]} 23. Qxe4 {[%clk 0:02:15.1]} 23... Re8 {[%clk
0:02:48.5]} 24. Qd3 {[%clk 0:02:15.1]} 24... b5 {[%clk 0:02:44.9]} 25. Ncd2
{[%clk 0:02:14.7]} 25... c5 {[%clk 0:02:37.5]} 26. Re1 {[%clk 0:01:57.5]} 26...
c4 {[%clk 0:02:36.1]} 27. Qf1 {[%clk 0:01:52.3]} 27... a6 {[%clk 0:02:28]} 28.
Ne4 {[%clk 0:01:42.6]} 28... Qf5 {[%clk 0:02:25.3]} 29. Nfd2 {[%clk 0:01:32.9]}
29... Kg7 {[%clk 0:02:19.8]} 30. Qf3 {[%clk 0:01:31.8]} 30... h5 {[%clk
0:02:16.7]} 31. Re2 {[%clk 0:01:26.6]} 31... Re7 {[%clk 0:02:15.1]} 32. Nc5
{[%clk 0:01:22.4]} 32... Rxe2 {[%clk 0:02:13]} 33. Qxe2 {[%clk 0:01:22.3]} 33...
c3 {[%clk 0:02:08.7]} 34. bxc3 {[%clk 0:01:18.8]} 34... Nxc3 {[%clk 0:02:09.6]}
35. Qe8 {[%clk 0:01:15.1]} 35... Bxc5 {[%clk 0:02:09.2]} 36. dxc5 {[%clk
0:01:14.5]} 36... Qxc5+ {[%clk 0:02:10.1]} 37. Kg2 {[%clk 0:01:10.9]} 37... Qd5+
{[%clk 0:02:03.1]} 38. Nf3 {[%clk 0:01:10.9]} 38... Qd4 {[%clk 0:02:01.2]} 39.
Qe7+ {[%clk 0:01:08.9]} 39... Kg8 {[%clk 0:01:59.8]} 40. Qe8+ {[%clk 0:01:08.9]}
40... Kg7 {[%clk 0:01:58.7]} 41. Qe7+ {[%clk 0:01:09.4]} 41... Kg8 {[%clk
0:01:59]} 42. Qe8+ {[%clk 0:01:09.8]} 42... Kg7 {[%clk 0:01:59.4]} 1/2-1/2

[Event "Late-Titled-Tuesday-Blitz-May-28-2024"]
[Site "Chess.com"]
[Date "2024.05.28"]
[Round "2"]
[White "Msb2"]
[Black "ELPRIMO0O0"]
[Result "1-0"]
[WhiteElo "3030"]
[BlackElo "2604"]
[TimeControl "180+1"]
[EndTime "14:15:45 PDT"]
[Termination "Msb2 won by resignation"]

1. d4 {[%clk 0:03:00.9]} 1... Nf6 {[%clk 0:03:00]} 2. c4 {[%clk 0:03:01.4]} 2...
c5 {[%clk 0:03:00.6]} 3. d5 {[%clk 0:03:01.7]} 3... b5 {[%clk 0:03:01.2]} 4.
cxb5 {[%clk 0:03:02.6]} 4... a6 {[%clk 0:03:01.6]} 5. bxa6 {[%clk 0:03:03.5]}
5... e6 {[%clk 0:03:02.2]} 6. Nc3 {[%clk 0:03:04.1]} 6... exd5 {[%clk
0:03:02.6]} 7. Nxd5 {[%clk 0:03:04.2]} 7... Be7 {[%clk 0:03:03.2]} 8. e4 {[%clk
0:03:01.8]} 8... Nxe4 {[%clk 0:03:02.8]} 9. Nf3 {[%clk 0:03:01.5]} 9... O-O
{[%clk 0:03:01.3]} 10. Bd3 {[%clk 0:02:56.9]} 10... Nf6 {[%clk 0:02:55.6]} 11.
Nxf6+ {[%clk 0:02:54.2]} 11... Bxf6 {[%clk 0:02:55.5]} 12. O-O {[%clk
0:02:53.3]} 12... Bxa6 {[%clk 0:02:52.2]} 13. Bf4 {[%clk 0:02:50.1]} 13... Nc6
{[%clk 0:02:41.9]} 14. Bd6 {[%clk 0:02:38.5]} 14... Re8 {[%clk 0:02:41.5]} 15.
Bxc5 {[%clk 0:02:35.6]} 15... Bxb2 {[%clk 0:02:38.6]} 16. Rb1 {[%clk 0:02:35.7]}
16... Bxd3 {[%clk 0:02:22.5]} 17. Qxd3 {[%clk 0:02:35.1]} 17... Rxa2 {[%clk
0:02:23.4]} 18. Qb3 {[%clk 0:02:06.4]} 18... Qa5 {[%clk 0:02:23.6]} 19. Ng5
{[%clk 0:02:06.3]} 19... Ne5 {[%clk 0:01:54.7]} 20. Bd6 {[%clk 0:01:47.5]} 20...
Qa8 {[%clk 0:00:50.1]} 21. Rxb2 {[%clk 0:01:31.2]} 21... Rxb2 {[%clk 0:00:49.3]}
22. Qxb2 {[%clk 0:01:32.1]} 22... Nc4 {[%clk 0:00:49.6]} 23. Qd4 {[%clk
0:01:32.4]} 1-0

[Event "Late-Titled-Tuesday-Blitz-May-28-2024"]
[Site "Chess.com"]
[Date "2024.05.28"]
[Round "2"]
[White "kemelgallo"]
[Black "ploxoi"]
[Result "1-0"]
[WhiteElo "2702"]
[BlackElo "2408"]
[TimeControl "180+1"]
[EndTime "14:15:48 PDT"]
[Termination "kemelgallo won by resignation"]

1. e4 {[%clk 0:02:49.4]} 1... c6 {[%clk 0:02:59.3]} 2. Nf3 {[%clk 0:02:46]} 2...
d5 {[%clk 0:02:57.2]} 3. Nc3 {[%clk 0:02:46.6]} 3... Nf6 {[%clk 0:02:55.4]} 4.
e5 {[%clk 0:02:46.4]} 4... Ne4 {[%clk 0:02:55.7]} 5. Ne2 {[%clk 0:02:45]} 5...
e6 {[%clk 0:02:53.2]} 6. d3 {[%clk 0:02:37.1]} 6... Nc5 {[%clk 0:02:51.3]} 7.
Ng3 {[%clk 0:02:36.8]} 7... Nbd7 {[%clk 0:02:50.5]} 8. d4 {[%clk 0:02:36.1]}
8... Na6 {[%clk 0:02:48.2]} 9. c3 {[%clk 0:02:33.2]} 9... c5 {[%clk 0:02:46.3]}
10. a3 {[%clk 0:02:29.6]} 10... Be7 {[%clk 0:02:36.5]} 11. Bd3 {[%clk
0:02:29.3]} 11... Nc7 {[%clk 0:02:34.5]} 12. h4 {[%clk 0:02:27.8]} 12... b6
{[%clk 0:02:34.7]} 13. Ng5 {[%clk 0:02:25.5]} 13... Ba6 {[%clk 0:02:24.7]} 14.
Bxh7 {[%clk 0:02:17.5]} 14... g6 {[%clk 0:02:02.6]} 15. h5 {[%clk 0:01:53.1]}
15... gxh5 {[%clk 0:01:30.4]} 16. Qxh5 {[%clk 0:01:47]} 16... Bxg5 {[%clk
0:01:25.9]} 17. Bxg5 {[%clk 0:01:46.6]} 17... Qc8 {[%clk 0:01:24.4]} 18. Qh6
{[%clk 0:01:10.1]} 18... Nf8 {[%clk 0:01:05.7]} 19. Qf6 {[%clk 0:01:07]} 19...
Ng6 {[%clk 0:01:01.9]} 20. Bxg6 {[%clk 0:01:07.2]} 1-0

[Event "Late-Titled-Tuesday-Blitz-May-28-2024"]
[Site "Chess.com"]
[Date "2024.05.28"]
[Round "2"]
[White "ChessGiantYouTube"]
[Black "GarayevKanan"]
[Result "0-1"]
[WhiteElo "2393"]
[BlackElo "2708"]
[TimeControl "180+1"]
[EndTime "14:16:01 PDT"]
[Termination "GarayevKanan won by resignation"]

1. g3 {[%clk 0:03:00.9]} 1... e5 {[%clk 0:02:59.1]} 2. Bg2 {[%clk 0:03:00.9]}
2... d5 {[%clk 0:02:59.7]} 3. d3 {[%clk 0:03:01.2]} 3... Nc6 {[%clk 0:02:57.8]}
4. e3 {[%clk 0:03:01.1]} 4... Nf6 {[%clk 0:02:55.7]} 5. Ne2 {[%clk 0:03:01.1]}
5... h5 {[%clk 0:02:51.8]} 6. h3 {[%clk 0:03:01.3]} 6... Be7 {[%clk 0:02:49.9]}
7. b3 {[%clk 0:03:01.1]} 7... Be6 {[%clk 0:02:50.4]} 8. Bb2 {[%clk 0:03:01]}
8... Qd7 {[%clk 0:02:51]} 9. Nd2 {[%clk 0:03:00.7]} 9... O-O-O {[%clk
0:02:51.4]} 10. a3 {[%clk 0:03:01.2]} 10... Nh7 {[%clk 0:02:47.5]} 11. b4 {[%clk
0:02:58.2]} 11... a6 {[%clk 0:02:47.9]} 12. c4 {[%clk 0:02:54.9]} 12... f5
{[%clk 0:02:35.6]} 13. b5 {[%clk 0:02:48.4]} 13... axb5 {[%clk 0:02:33.9]} 14.
cxb5 {[%clk 0:02:48.7]} 14... Na5 {[%clk 0:02:34.3]} 15. Bxe5 {[%clk 0:02:48.5]}
15... Qxb5 {[%clk 0:02:30.1]} 16. Nd4 {[%clk 0:02:42.4]} 16... Qd7 {[%clk
0:02:29.7]} 17. Rc1 {[%clk 0:02:29.9]} 17... c5 {[%clk 0:02:20]} 18. N2b3 {[%clk
0:02:20.6]} 18... Nxb3 {[%clk 0:02:13.3]} 19. Nxb3 {[%clk 0:02:08.3]} 19... b6
{[%clk 0:02:10.6]} 20. a4 {[%clk 0:01:54.1]} 20... c4 {[%clk 0:02:08.4]} 21.
dxc4 {[%clk 0:01:50.4]} 21... dxc4 {[%clk 0:02:09.3]} 22. Nd4 {[%clk 0:01:50.9]}
22... Bb4+ {[%clk 0:02:08.2]} 23. Kf1 {[%clk 0:01:49.5]} 23... Bd5 {[%clk
0:02:08.8]} 24. Bxd5 {[%clk 0:01:45.1]} 24... Qxd5 {[%clk 0:02:09.7]} 25. Kg1
{[%clk 0:01:39.7]} 25... Qxe5 {[%clk 0:02:09.5]} 26. Rxc4+ {[%clk 0:01:38.9]}
26... Bc5 {[%clk 0:02:09.3]} 27. a5 {[%clk 0:01:32.6]} 27... Kb7 {[%clk
0:02:05.4]} 28. a6+ {[%clk 0:01:29.1]} 28... Ka8 {[%clk 0:02:02.5]} 29. Qa4
{[%clk 0:01:04.9]} 29... Qd5 {[%clk 0:01:51.9]} 30. Kh2 {[%clk 0:01:01.1]} 30...
Ng5 {[%clk 0:01:47.1]} 31. Rd1 {[%clk 0:00:50.3]} 31... Bxd4 {[%clk 0:01:41.7]}
32. Rdxd4 {[%clk 0:00:45]} 32... Nf3+ {[%clk 0:01:40.6]} 33. Kh1 {[%clk
0:00:45.6]} 33... Nxd4+ {[%clk 0:01:41.2]} 34. Kh2 {[%clk 0:00:44.4]} 34... Nf3+
{[%clk 0:01:40.9]} 0-1

[Event "Late-Titled-Tuesday-Blitz-May-28-2024"]
[Site "Chess.com"]
[Date "2024.05.28"]
[Round "2"]
[White "YellowJacek"]
[Black "NMJeevanK"]
[Result "0-1"]
[WhiteElo "2365"]
[BlackElo "2680"]
[TimeControl "180+1"]
[EndTime "14:16:01 PDT"]
[Termination "NMJeevanK won by resignation"]

1. e4 {[%clk 0:03:00.9]} 1... d6 {[%clk 0:03:00.2]} 2. d4 {[%clk 0:03:00]} 2...
Nf6 {[%clk 0:03:01]} 3. Nc3 {[%clk 0:03:00.4]} 3... e5 {[%clk 0:03:01.7]} 4.
Nge2 {[%clk 0:02:48.1]} 4... Be7 {[%clk 0:02:59.9]} 5. h3 {[%clk 0:02:48.2]}
5... c6 {[%clk 0:03:00.3]} 6. g4 {[%clk 0:02:48]} 6... b5 {[%clk 0:02:56.1]} 7.
a3 {[%clk 0:02:30]} 7... Nfd7 {[%clk 0:02:43.6]} 8. Ng3 {[%clk 0:02:24.5]} 8...
O-O {[%clk 0:02:36.7]} 9. Nf5 {[%clk 0:02:20.4]} 9... Nb6 {[%clk 0:02:20.7]} 10.
Nxe7+ {[%clk 0:01:59.3]} 10... Qxe7 {[%clk 0:02:20.6]} 11. Be3 {[%clk
0:01:55.9]} 11... exd4 {[%clk 0:02:13.7]} 12. Qxd4 {[%clk 0:01:53.8]} 12... c5
{[%clk 0:02:11.6]} 13. Qd2 {[%clk 0:01:53.8]} 13... b4 {[%clk 0:02:09.5]} 14.
axb4 {[%clk 0:01:51.4]} 14... cxb4 {[%clk 0:02:10.4]} 15. Nd5 {[%clk 0:01:51.8]}
15... Qxe4 {[%clk 0:02:07.6]} 16. Nxb6 {[%clk 0:01:49.4]} 16... axb6 {[%clk
0:02:05.7]} 17. Rxa8 {[%clk 0:01:46.9]} 17... Qxa8 {[%clk 0:02:06.6]} 18. Rg1
{[%clk 0:01:42.3]} 18... Qa1+ {[%clk 0:02:05]} 19. Qc1 {[%clk 0:01:42.5]} 19...
Qa5 {[%clk 0:02:00.5]} 20. b3 {[%clk 0:01:29]} 20... Re8 {[%clk 0:01:58.7]} 21.
Bd3 {[%clk 0:01:25.6]} 21... d5 {[%clk 0:01:53.2]} 22. Kf1 {[%clk 0:01:25.7]}
22... Ba6 {[%clk 0:01:51.7]} 23. Qd2 {[%clk 0:01:20.4]} 23... Nc6 {[%clk
0:01:48.9]} 24. Kg2 {[%clk 0:01:13.5]} 24... d4 {[%clk 0:01:47.2]} 25. Bf4
{[%clk 0:01:13.1]} 25... Qd5+ {[%clk 0:01:45.3]} 26. Kh2 {[%clk 0:01:09.5]}
26... Bb7 {[%clk 0:01:37.6]} 27. Bc4 {[%clk 0:01:00.7]} 27... Qe4 {[%clk
0:01:27.7]} 28. Bg3 {[%clk 0:01:01]} 28... Ne5 {[%clk 0:01:23.8]} 29. Qf4 {[%clk
0:00:55.6]} 29... Nf3+ {[%clk 0:01:18.7]} 0-1

[Event "Late-Titled-Tuesday-Blitz-May-28-2024"]
[Site "Chess.com"]
[Date "2024.05.28"]
[Round "2"]
[White "pirulillo"]
[Black "Umumba_FM"]
[Result "0-1"]
[WhiteElo "2393"]
[BlackElo "2629"]
[TimeControl "180+1"]
[EndTime "14:16:07 PDT"]
[Termination "Umumba_FM won by resignation"]

1. e4 {[%clk 0:03:00.9]} 1... Nc6 {[%clk 0:02:59.4]} 2. Nc3 {[%clk 0:02:54.3]}
2... Nf6 {[%clk 0:02:59.2]} 3. Bc4 {[%clk 0:02:46.7]} 3... e6 {[%clk 0:02:58.1]}
4. d4 {[%clk 0:02:43]} 4... d5 {[%clk 0:02:49]} 5. exd5 {[%clk 0:02:41.1]} 5...
exd5 {[%clk 0:02:49.9]} 6. Bb5 {[%clk 0:02:38.3]} 6... Bg4 {[%clk 0:02:37.5]} 7.
Nge2 {[%clk 0:02:34.1]} 7... h6 {[%clk 0:02:31.3]} 8. O-O {[%clk 0:02:32.5]}
8... Bd6 {[%clk 0:02:31.3]} 9. Be3 {[%clk 0:02:19.9]} 9... O-O {[%clk
0:02:30.8]} 10. Bxc6 {[%clk 0:02:17.7]} 10... bxc6 {[%clk 0:02:30.7]} 11. Na4
{[%clk 0:02:17.8]} 11... Re8 {[%clk 0:02:15.7]} 12. h3 {[%clk 0:02:15]} 12...
Bh5 {[%clk 0:02:11.6]} 13. Nc5 {[%clk 0:02:13.4]} 13... Ne4 {[%clk 0:02:06.7]}
14. Nxe4 {[%clk 0:01:54.9]} 14... Rxe4 {[%clk 0:02:07.6]} 15. Qd2 {[%clk
0:01:53.1]} 15... Qe7 {[%clk 0:01:57.2]} 16. Nc3 {[%clk 0:01:43.9]} 16... Re6
{[%clk 0:01:51]} 17. Kh1 {[%clk 0:01:10.4]} 17... Re8 {[%clk 0:01:46.3]} 18. a3
{[%clk 0:01:06.1]} 18... Qh4 {[%clk 0:01:44.1]} 19. Rae1 {[%clk 0:00:37.5]}
19... Bf3 {[%clk 0:01:40.8]} 20. Kg1 {[%clk 0:00:32.8]} 20... Rg6 {[%clk
0:01:20.9]} 0-1

[Event "Late-Titled-Tuesday-Blitz-May-28-2024"]
[Site "Chess.com"]
[Date "2024.05.28"]
[Round "2"]
[White "Galileo22"]
[Black "Grischuk"]
[Result "0-1"]
[WhiteElo "2649"]
[BlackElo "3135"]
[TimeControl "180+1"]
[EndTime "14:16:20 PDT"]
[Termination "Grischuk won by resignation"]

1. c4 {[%clk 0:03:00.9]} 1... e5 {[%clk 0:02:55.3]} 2. g3 {[%clk 0:03:00.9]}
2... d6 {[%clk 0:02:51.5]} 3. Bg2 {[%clk 0:03:01.1]} 3... f5 {[%clk 0:02:51.4]}
4. d4 {[%clk 0:02:57.8]} 4... Be7 {[%clk 0:02:51.5]} 5. Nc3 {[%clk 0:02:43.4]}
5... Nf6 {[%clk 0:02:51]} 6. Nf3 {[%clk 0:02:42.6]} 6... e4 {[%clk 0:02:50.8]}
7. Ng5 {[%clk 0:02:38]} 7... c6 {[%clk 0:02:47.5]} 8. f3 {[%clk 0:02:35.4]} 8...
d5 {[%clk 0:02:39.9]} 9. O-O {[%clk 0:02:33]} 9... O-O {[%clk 0:02:28]} 10. Nh3
{[%clk 0:02:22.3]} 10... Na6 {[%clk 0:02:20.6]} 11. cxd5 {[%clk 0:02:12.5]}
11... cxd5 {[%clk 0:02:21.5]} 12. a3 {[%clk 0:02:06.7]} 12... Nc7 {[%clk
0:02:15.5]} 13. Qb3 {[%clk 0:02:03.5]} 13... Ne6 {[%clk 0:02:03.9]} 14. Be3
{[%clk 0:02:00.4]} 14... Kh8 {[%clk 0:01:56.7]} 15. Nf4 {[%clk 0:01:53.1]} 15...
Nc7 {[%clk 0:01:43]} 16. Nh3 {[%clk 0:01:31.9]} 16... h6 {[%clk 0:01:33.9]} 17.
Bf4 {[%clk 0:01:17.4]} 17... Bd6 {[%clk 0:01:30.7]} 18. Be5 {[%clk 0:01:02.8]}
18... Be6 {[%clk 0:01:09.6]} 19. Nf4 {[%clk 0:00:54.9]} 19... Bf7 {[%clk
0:01:09.8]} 20. Bxf6 {[%clk 0:00:45.4]} 20... Qxf6 {[%clk 0:01:08.7]} 21. Nfxd5
{[%clk 0:00:41.7]} 21... Nxd5 {[%clk 0:01:05]} 22. fxe4 {[%clk 0:00:37.2]} 22...
Qxd4+ {[%clk 0:01:01.5]} 0-1

[Event "Late-Titled-Tuesday-Blitz-May-28-2024"]
[Site "Chess.com"]
[Date "2024.05.28"]
[Round "2"]
[White "Rud_Makarian"]
[Black "KChor05"]
[Result "1-0"]
[WhiteElo "2953"]
[BlackElo "2576"]
[TimeControl "180+1"]
[EndTime "14:16:20 PDT"]
[Termination "Rud_Makarian won by resignation"]

1. d4 {[%clk 0:03:00.9]} 1... Nf6 {[%clk 0:02:59.3]} 2. c4 {[%clk 0:03:01.3]}
2... g6 {[%clk 0:02:59]} 3. Nc3 {[%clk 0:03:00.9]} 3... Bg7 {[%clk 0:02:58.4]}
4. e4 {[%clk 0:03:00.9]} 4... d6 {[%clk 0:02:58.5]} 5. Be2 {[%clk 0:03:01.3]}
5... O-O {[%clk 0:02:58.1]} 6. Be3 {[%clk 0:03:01.8]} 6... Nc6 {[%clk
0:02:50.2]} 7. Nf3 {[%clk 0:02:59]} 7... e5 {[%clk 0:02:49.3]} 8. d5 {[%clk
0:02:58.7]} 8... Ne7 {[%clk 0:02:48.4]} 9. Nd2 {[%clk 0:02:59.1]} 9... Nd7
{[%clk 0:02:44.1]} 10. O-O {[%clk 0:02:54.5]} 10... f5 {[%clk 0:02:43.3]} 11. f3
{[%clk 0:02:54.9]} 11... f4 {[%clk 0:02:42.1]} 12. Bf2 {[%clk 0:02:55.2]} 12...
g5 {[%clk 0:02:41.5]} 13. b4 {[%clk 0:02:55.5]} 13... Ng6 {[%clk 0:02:38.4]} 14.
c5 {[%clk 0:02:55]} 14... Nf6 {[%clk 0:02:29.8]} 15. Nc4 {[%clk 0:02:27.1]}
15... Rf7 {[%clk 0:02:22.1]} 16. cxd6 {[%clk 0:02:23.8]} 16... cxd6 {[%clk
0:02:21.2]} 17. Nb5 {[%clk 0:02:24.2]} 17... Bf8 {[%clk 0:02:17.8]} 18. Nxa7
{[%clk 0:02:22.8]} 18... Rxa7 {[%clk 0:02:14.2]} 19. Bxa7 {[%clk 0:02:19.3]}
19... b5 {[%clk 0:02:02.4]} 20. Bb6 {[%clk 0:02:15.6]} 20... Qe7 {[%clk
0:02:02.3]} 21. Nd2 {[%clk 0:02:12.1]} 21... h5 {[%clk 0:01:59.9]} 22. Rc1
{[%clk 0:02:12.3]} 22... Bd7 {[%clk 0:01:53.3]} 23. Rc7 {[%clk 0:02:12.3]} 23...
g4 {[%clk 0:01:51.5]} 24. Bxb5 {[%clk 0:02:03]} 24... Qe8 {[%clk 0:01:47]} 25.
Bxd7 {[%clk 0:02:00.5]} 25... Nxd7 {[%clk 0:01:47.9]} 26. Qa4 {[%clk 0:01:33.7]}
26... Rg7 {[%clk 0:01:41.7]} 27. Kh1 {[%clk 0:01:12.3]} 27... Nh4 {[%clk
0:01:33.8]} 28. Rg1 {[%clk 0:01:10.1]} 28... gxf3 {[%clk 0:01:16]} 29. Nxf3
{[%clk 0:01:05.9]} 29... Ng6 {[%clk 0:01:03.1]} 30. Qc6 {[%clk 0:00:58]} 1-0

[Event "Late-Titled-Tuesday-Blitz-May-28-2024"]
[Site "Chess.com"]
[Date "2024.05.28"]
[Round "2"]
[White "WPWPWP-2015"]
[Black "remyrushbrooke"]
[Result "1-0"]
[WhiteElo "2524"]
[BlackElo "2274"]
[TimeControl "180+1"]
[EndTime "14:16:30 PDT"]
[Termination "WPWPWP-2015 won by resignation"]

1. e4 {[%clk 0:03:00.9]} 1... g6 {[%clk 0:03:00.3]} 2. d4 {[%clk 0:02:59.8]}
2... Bg7 {[%clk 0:03:00.9]} 3. Nf3 {[%clk 0:02:58.9]} 3... d6 {[%clk 0:03:01.1]}
4. h3 {[%clk 0:02:58.3]} 4... Nf6 {[%clk 0:03:00.7]} 5. Bd3 {[%clk 0:02:57.5]}
5... O-O {[%clk 0:02:59.6]} 6. O-O {[%clk 0:02:57.4]} 6... Nc6 {[%clk 0:02:59]}
7. d5 {[%clk 0:02:56.3]} 7... Nb8 {[%clk 0:02:58.4]} 8. c4 {[%clk 0:02:55.6]}
8... e5 {[%clk 0:02:55.6]} 9. Nc3 {[%clk 0:02:54.9]} 9... Nbd7 {[%clk
0:02:55.9]} 10. b4 {[%clk 0:02:54]} 10... a5 {[%clk 0:02:55.9]} 11. bxa5 {[%clk
0:02:51.9]} 11... Nc5 {[%clk 0:02:52.6]} 12. Bc2 {[%clk 0:02:47.2]} 12... Rxa5
{[%clk 0:02:43]} 13. a4 {[%clk 0:02:46.8]} 13... b6 {[%clk 0:02:29.6]} 14. Ba3
{[%clk 0:02:46.3]} 14... Nfd7 {[%clk 0:02:27.8]} 15. Bb4 {[%clk 0:02:45.9]}
15... Ra8 {[%clk 0:02:26.1]} 16. a5 {[%clk 0:02:46]} 16... Ba6 {[%clk
0:02:20.2]} 17. axb6 {[%clk 0:02:38.2]} 17... Bxc4 {[%clk 0:02:14.8]} 18. Rxa8
{[%clk 0:02:30.2]} 18... Qxa8 {[%clk 0:02:14]} 19. bxc7 {[%clk 0:02:18.5]} 19...
Bxf1 {[%clk 0:02:09.5]} 20. Qxf1 {[%clk 0:02:17.3]} 20... Qb7 {[%clk 0:02:00.7]}
21. Nb5 {[%clk 0:02:14.3]} 21... f5 {[%clk 0:01:49.9]} 22. Ng5 {[%clk
0:02:00.2]} 22... fxe4 {[%clk 0:01:34.2]} 23. Ne6 {[%clk 0:01:59.8]} 23... e3
{[%clk 0:00:56.3]} 24. Nxf8 {[%clk 0:01:53.2]} 24... exf2+ {[%clk 0:00:54.5]}
25. Qxf2 {[%clk 0:01:47.3]} 25... Bxf8 {[%clk 0:00:52.9]} 26. Bxc5 {[%clk
0:01:32]} 26... Nxc5 {[%clk 0:00:35.9]} 27. Qf6 {[%clk 0:01:30.9]} 27... Na6
{[%clk 0:00:20.3]} 28. Qe6+ {[%clk 0:01:28.2]} 1-0

[Event "Late-Titled-Tuesday-Blitz-May-28-2024"]
[Site "Chess.com"]
[Date "2024.05.28"]
[Round "2"]
[White "2346PL"]
[Black "Fonsofan"]
[Result "0-1"]
[WhiteElo "2541"]
[BlackElo "2798"]
[TimeControl "180+1"]
[EndTime "14:16:40 PDT"]
[Termination "Fonsofan won by resignation"]

1. d4 {[%clk 0:03:00.9]} 1... Nf6 {[%clk 0:02:52.1]} 2. Bg5 {[%clk 0:03:00.3]}
2... c5 {[%clk 0:02:45.7]} 3. d5 {[%clk 0:02:59]} 3... Qb6 {[%clk 0:02:44.3]} 4.
Nc3 {[%clk 0:02:59.2]} 4... Qxb2 {[%clk 0:02:40.9]} 5. Bd2 {[%clk 0:02:59.2]}
5... Qb6 {[%clk 0:02:41.5]} 6. e4 {[%clk 0:02:59.4]} 6... d6 {[%clk 0:02:42.1]}
7. f4 {[%clk 0:02:58.8]} 7... g6 {[%clk 0:02:41.7]} 8. Nf3 {[%clk 0:02:59]} 8...
Bg7 {[%clk 0:02:42.2]} 9. e5 {[%clk 0:02:48.6]} 9... dxe5 {[%clk 0:02:36.1]} 10.
fxe5 {[%clk 0:02:48.6]} 10... Ng4 {[%clk 0:02:36.7]} 11. e6 {[%clk 0:02:45.4]}
11... O-O {[%clk 0:02:28]} 12. Ng5 {[%clk 0:02:39.4]} 12... f5 {[%clk 0:02:20]}
13. Be2 {[%clk 0:02:30.4]} 13... c4 {[%clk 0:02:12.6]} 14. Bxg4 {[%clk
0:02:26.2]} 14... fxg4 {[%clk 0:02:13.5]} 15. Qe2 {[%clk 0:02:20.5]} 15... Na6
{[%clk 0:02:09.4]} 16. Rb1 {[%clk 0:02:06.9]} 16... Qd4 {[%clk 0:01:51.5]} 17.
Qe4 {[%clk 0:01:49.2]} 17... Qf2+ {[%clk 0:01:41.9]} 18. Kd1 {[%clk 0:01:48.7]}
18... Nc5 {[%clk 0:01:42.4]} 19. Qxg4 {[%clk 0:01:45.7]} 19... b6 {[%clk
0:01:30.9]} 20. Nce4 {[%clk 0:01:34.1]} 20... Nxe4 {[%clk 0:01:26.5]} 21. Nxe4
{[%clk 0:01:34.1]} 21... Qd4 {[%clk 0:01:27]} 22. d6 {[%clk 0:01:01]} 22... exd6
{[%clk 0:01:22.5]} 23. Re1 {[%clk 0:00:52.3]} 23... d5 {[%clk 0:01:20.3]} 24.
Kc1 {[%clk 0:00:16.2]} 24... dxe4 {[%clk 0:01:17.5]} 25. Rxe4 {[%clk 0:00:17.1]}
25... Rf1+ {[%clk 0:01:12.1]} 0-1